fUST/lending_fUST_20260524
["ID","MTS","AMOUNT","RATE_DAILY","PERIOD"]
[422868653,1779552642000,-232.929095,8.489e-05,2]
[422868654,1779552642000,-500.0,8.489e-05,2]
[422868652,1779552642000,-232.929095,8.489e-05,2]
[422868659,1779552642000,-500.0,8.489e-05,2]
[422868664,1779552642000,-319.5028208,8.489e-05,2]
[422868674,1779552642000,-500.0,8.489e-05,2]
[422868665,1779552642000,-504.61756496,8.489e-05,2]
[422868666,1779552642000,-500.0,8.489e-05,2]
[422868663,1779552642000,-500.0,8.489e-05,2]
[422868675,1779552642000,-500.0,8.489e-05,2]
[422868655,1779552642000,-512.86623903,8.489e-05,2]
[422868705,1779552642000,-500.0,8.489e-05,2]
[422868676,1779552642000,-500.0,8.489e-05,2]
[422868717,1779552642000,-500.0,8.489e-05,2]
[422868745,1779552642000,-576.271979,8.49e-05,2]
[422868778,1779552642000,-500.0,8.491e-05,2]
[422868742,1779552642000,-576.271979,8.49e-05,2]
[422868743,1779552642000,-576.271979,8.49e-05,2]
[422868752,1779552642000,-500.0,8.491e-05,2]
[422868758,1779552642000,-500.0,8.491e-05,2]
[422868760,1779552642000,-500.0,8.491e-05,2]
[422868753,1779552642000,-500.0,8.491e-05,2]
[422868761,1779552642000,-500.0,8.491e-05,2]
[422868759,1779552642000,-517.71187255,8.491e-05,2]
[422868755,1779552642000,-500.0,8.491e-05,2]
[422868756,1779552642000,-500.0,8.491e-05,2]
[422868757,1779552642000,-500.0,8.491e-05,2]
[422868764,1779552642000,-500.0,8.491e-05,2]
[422868744,1779552642000,-576.271979,8.49e-05,2]
[422868754,1779552642000,-500.0,8.491e-05,2]
[422868765,1779552642000,-500.0,8.491e-05,2]
[422868763,1779552642000,-500.0,8.491e-05,2]
[422868766,1779552642000,-500.0,8.491e-05,2]
[422868770,1779552642000,-500.0,8.491e-05,2]
[422868767,1779552642000,-500.0,8.491e-05,2]
[422868777,1779552642000,-500.0,8.491e-05,2]
[422868769,1779552642000,-500.0,8.491e-05,2]
[422868768,1779552642000,-500.0,8.491e-05,2]
[422868771,1779552642000,-500.0,8.491e-05,2]
[422868774,1779552642000,-500.0,8.491e-05,2]
[422868775,1779552642000,-500.24033569,8.491e-05,2]
[422868776,1779552642000,-500.0,8.491e-05,2]
[422868773,1779552642000,-500.0,8.491e-05,2]
[422868716,1779552642000,-500.0,8.489e-05,2]
[422868762,1779552642000,-500.0,8.491e-05,2]
[422868746,1779552642000,-232.929095,8.49e-05,2]
[422868772,1779552642000,-500.0,8.491e-05,2]
[422868751,1779552642000,-500.0,8.491e-05,2]
[422868715,1779552642000,-500.0,8.489e-05,2]
[422868709,1779552642000,-2120.2065,8.489e-05,2]
[422868706,1779552642000,-500.45358009,8.489e-05,2]
[422868704,1779552642000,-501.14223319,8.489e-05,2]
[422868708,1779552642000,-500.0,8.489e-05,2]
[422868712,1779552642000,-500.20120716,8.489e-05,2]
[422868707,1779552642000,-500.30658169,8.489e-05,2]
[422868710,1779552642000,-500.0,8.489e-05,2]
[422868747,1779552642000,-232.929095,8.49e-05,2]
[422868713,1779552642000,-500.0,8.489e-05,2]
[422868714,1779552642000,-507.83574559,8.489e-05,2]
[422868720,1779552642000,-151.0,8.489e-05,2]
[422868718,1779552642000,-151.0,8.489e-05,2]
[422868724,1779552642000,-500.0,8.489e-05,2]
[422868728,1779552642000,-500.0,8.49e-05,2]
[422868711,1779552642000,-500.0,8.489e-05,2]
[422868726,1779552642000,-500.0,8.49e-05,2]
[422868740,1779552642000,-500.0,8.49e-05,2]
[422868722,1779552642000,-151.0,8.489e-05,2]
[422868741,1779552642000,-501.18539712,8.49e-05,2]
[422868750,1779552642000,-500.0,8.491e-05,2]
[422868738,1779552642000,-500.0,8.49e-05,2]
[422868748,1779552642000,-232.929095,8.49e-05,2]
[422868739,1779552642000,-500.38636257,8.49e-05,2]
[422868749,1779552642000,-232.929095,8.49e-05,2]
[422868733,1779552642000,-500.0,8.49e-05,2]
[422868731,1779552642000,-500.0,8.49e-05,2]
[422868734,1779552642000,-502.17320226,8.49e-05,2]
[422868736,1779552642000,-501.08031102,8.49e-05,2]
[422868735,1779552642000,-501.99172353,8.49e-05,2]
[422868730,1779552642000,-500.0,8.49e-05,2]
[422868737,1779552642000,-500.0,8.49e-05,2]
[422868823,1779552643000,-500.0,8.491e-05,2]
[422868826,1779552643000,-151.0,8.491e-05,2]
[422868822,1779552643000,-500.0,8.491e-05,2]
[422868825,1779552643000,-151.0,8.491e-05,2]
[422868824,1779552643000,-151.0,8.491e-05,2]
[422868820,1779552643000,-500.0,8.491e-05,2]
[422868813,1779552643000,-500.22203221,8.491e-05,2]
[422868814,1779552643000,-500.0,8.491e-05,2]
[422868812,1779552643000,-500.0,8.491e-05,2]
[422868808,1779552643000,-500.0,8.491e-05,2]
[422868807,1779552643000,-500.0,8.491e-05,2]
[422868810,1779552643000,-500.0,8.491e-05,2]
[422868819,1779552643000,-151.0,8.491e-05,2]
[422868821,1779552643000,-500.0,8.491e-05,2]
[422868839,1779552643000,-500.05,8.491e-05,2]
[422868827,1779552643000,-500.0,8.491e-05,2]
[422868831,1779552643000,-500.0,8.491e-05,2]
[422868828,1779552643000,-500.0,8.491e-05,2]
[422868830,1779552643000,-500.3787324,8.491e-05,2]
[422868829,1779552643000,-500.0,8.491e-05,2]
[422868833,1779552643000,-500.0,8.491e-05,2]
[422868834,1779552643000,-500.39470202,8.491e-05,2]
[422868848,1779552643000,-186.64,8.491e-05,2]
[422868847,1779552643000,-500.0,8.491e-05,2]
[422868843,1779552643000,-151.0,8.491e-05,2]
[422868844,1779552643000,-500.0,8.491e-05,2]
[422868835,1779552643000,-544.94842422,8.491e-05,2]
[422868840,1779552643000,-562.56,8.491e-05,2]
[422868809,1779552643000,-500.0,8.491e-05,2]
[422868832,1779552643000,-500.22936518,8.491e-05,2]
[422868815,1779552643000,-515.63905487,8.491e-05,2]
[422868796,1779552643000,-500.0,8.491e-05,2]
[422868818,1779552643000,-500.14944846,8.491e-05,2]
[422868838,1779552643000,-500.0,8.491e-05,2]
[422868779,1779552643000,-500.0,8.491e-05,2]
[422868789,1779552643000,-500.0,8.491e-05,2]
[422868791,1779552643000,-500.0,8.491e-05,2]
[422868790,1779552643000,-500.22606175,8.491e-05,2]
[422868788,1779552643000,-500.0,8.491e-05,2]
[422868786,1779552643000,-500.0,8.491e-05,2]
[422868782,1779552643000,-401.84735635,8.491e-05,2]
[422868781,1779552643000,-500.0,8.491e-05,2]
[422868784,1779552643000,-500.0,8.491e-05,2]
[422868783,1779552643000,-500.0,8.491e-05,2]
[422868785,1779552643000,-500.25090508,8.491e-05,2]
[422868780,1779552643000,-500.0,8.491e-05,2]
[422868787,1779552643000,-500.0,8.491e-05,2]
[422868816,1779552643000,-500.0,8.491e-05,2]
[422868792,1779552643000,-500.0,8.491e-05,2]
[422868795,1779552643000,-500.0,8.491e-05,2]
[422868797,1779552643000,-450.16667849,8.491e-05,2]
[422868804,1779552643000,-151.0,8.491e-05,2]
[422868805,1779552643000,-500.0,8.491e-05,2]
[422868803,1779552643000,-500.0,8.491e-05,2]
[422868793,1779552643000,-500.0,8.491e-05,2]
[422868801,1779552643000,-500.0,8.491e-05,2]
[422868800,1779552643000,-541.59703694,8.491e-05,2]
[422868798,1779552643000,-500.0,8.491e-05,2]
[422868799,1779552643000,-500.0,8.491e-05,2]
[422868802,1779552643000,-500.0,8.491e-05,2]
[422868806,1779552643000,-151.0,8.491e-05,2]
[422868811,1779552643000,-500.0,8.491e-05,2]
[422868817,1779552643000,-151.0,8.491e-05,2]
[422868794,1779552643000,-500.0,8.491e-05,2]
[422868837,1779552643000,-501.89041329,8.491e-05,2]
[422868845,1779552643000,-151.0,8.491e-05,2]
[422868836,1779552643000,-501.10186383,8.491e-05,2]
[422868880,1779552643000,-151.0,8.5e-05,2]
[422868875,1779552643000,-258.823685,8.5e-05,2]
[422868879,1779552643000,-151.0,8.5e-05,2]
[422868885,1779552643000,-576.271979,8.5e-05,2]
[422868884,1779552643000,-576.271979,8.5e-05,2]
[422868887,1779552643000,-300.0,8.567e-05,2]
[422868893,1779552643000,-300.0,8.567e-05,2]
[422868886,1779552643000,-5617.88655673,8.552e-05,2]
[422868888,1779552643000,-300.0,8.567e-05,2]
[422868894,1779552643000,-300.0,8.567e-05,2]
[422868896,1779552643000,-300.0,8.567e-05,2]
[422868895,1779552643000,-300.0,8.567e-05,2]
[422868889,1779552643000,-300.0,8.567e-05,2]
[422868891,1779552643000,-300.0,8.567e-05,2]
[422868876,1779552643000,-151.0,8.5e-05,2]
[422868890,1779552643000,-300.0,8.567e-05,2]
[422868897,1779552643000,-300.0,8.567e-05,2]
[422868899,1779552643000,-300.0,8.567e-05,2]
[422868900,1779552643000,-300.0,8.567e-05,2]
[422868901,1779552643000,-300.0,8.567e-05,2]
[422868898,1779552643000,-300.0,8.567e-05,2]
[422868902,1779552643000,-207.416715,8.578e-05,2]
[422868904,1779552643000,-196.856999,8.606e-05,2]
[422868903,1779552643000,-160.0,8.6e-05,2]
[422868909,1779552643000,-537.6845,8.731e-05,2]
[422868905,1779552643000,-600.0,8.657e-05,2]
[422868908,1779552643000,-162.380719,8.731e-05,2]
[422868846,1779552643000,-151.0,8.491e-05,2]
[422868910,1779552643000,-501.26370144,8.76e-05,2]
[422868906,1779552643000,-151.0,8.731e-05,2]
[422868892,1779552643000,-300.0,8.567e-05,2]
[422868881,1779552643000,-576.271979,8.5e-05,2]
[422868907,1779552643000,-500.0,8.731e-05,2]
[422868882,1779552643000,-160.87039899,8.5e-05,2]
[422868878,1779552643000,-151.0,8.5e-05,2]
[422868842,1779552643000,-151.0,8.491e-05,2]
[422868850,1779552643000,-500.0,8.491e-05,2]
[422868852,1779552643000,-500.0,8.491e-05,2]
[422868857,1779552643000,-576.271979,8.491e-05,2]
[422868855,1779552643000,-500.0,8.491e-05,2]
[422868849,1779552643000,-500.0,8.491e-05,2]
[422868853,1779552643000,-500.0,8.491e-05,2]
[422868854,1779552643000,-500.0,8.491e-05,2]
[422868851,1779552643000,-500.40348498,8.491e-05,2]
[422868858,1779552643000,-576.271979,8.491e-05,2]
[422868856,1779552643000,-576.271979,8.491e-05,2]
[422868859,1779552643000,-576.271979,8.491e-05,2]
[422868860,1779552643000,-576.271979,8.491e-05,2]
[422868870,1779552643000,-232.929095,8.491e-05,2]
[422868841,1779552643000,-500.0,8.491e-05,2]
[422868863,1779552643000,-576.271979,8.491e-05,2]
[422868862,1779552643000,-576.271979,8.491e-05,2]
[422868877,1779552643000,-151.0,8.5e-05,2]
[422868872,1779552643000,-237.567648,8.491e-05,2]
[422868873,1779552643000,-496270.83981154,8.5e-05,2]
[422868874,1779552643000,-151.0,8.5e-05,2]
[422868871,1779552643000,-232.929093,8.491e-05,2]
[422868883,1779552643000,-576.271979,8.5e-05,2]
[422868869,1779552643000,-232.929095,8.491e-05,2]
[422868865,1779552643000,-232.929095,8.491e-05,2]
[422868866,1779552643000,-232.929095,8.491e-05,2]
[422868867,1779552643000,-232.929095,8.491e-05,2]
[422868864,1779552643000,-232.929095,8.491e-05,2]
[422868861,1779552643000,-576.271979,8.491e-05,2]
[422868868,1779552643000,-232.929095,8.491e-05,2]
[422868967,1779552644000,-500.0,8.762e-05,2]
[422868976,1779552644000,-500.62277891,8.762e-05,2]
[422868964,1779552644000,-878.65,8.762e-05,2]
[422868975,1779552644000,-500.0,8.762e-05,2]
[422868965,1779552644000,-500.0,8.762e-05,2]
[422868955,1779552644000,-498.41348543,8.762e-05,2]
[422868956,1779552644000,-517.52,8.762e-05,2]
[422868953,1779552644000,-500.0,8.762e-05,2]
[422868960,1779552644000,-500.0,8.762e-05,2]
[422868957,1779552644000,-500.0,8.762e-05,2]
[422868968,1779552644000,-500.0,8.762e-05,2]
[422868954,1779552644000,-748.39,8.762e-05,2]
[422868961,1779552644000,-4306.63,8.762e-05,2]
[422868971,1779552644000,-635.36854598,8.762e-05,2]
[422868974,1779552644000,-501.24470042,8.762e-05,2]
[422868973,1779552644000,-500.0,8.762e-05,2]
[422868969,1779552644000,-541.55132075,8.762e-05,2]
[422868972,1779552644000,-500.0,8.762e-05,2]
[422868970,1779552644000,-500.82893877,8.762e-05,2]
[422868977,1779552644000,-500.0,8.762e-05,2]
[422868979,1779552644000,-166.56887103,8.762e-05,2]
[422868980,1779552644000,-500.0,8.762e-05,2]
[422868983,1779552644000,-500.0,8.762e-05,2]
[422868982,1779552644000,-500.0,8.762e-05,2]
[422868981,1779552644000,-502.94,8.762e-05,2]
[422868988,1779552644000,-500.0,8.763e-05,2]
[422868978,1779552644000,-870.9,8.762e-05,2]
[422868989,1779552644000,-483.92777341,8.763e-05,2]
[422868966,1779552644000,-500.0,8.762e-05,2]
[422868959,1779552644000,-500.0,8.762e-05,2]
[422868927,1779552644000,-500.0,8.76e-05,2]
[422868962,1779552644000,-500.0,8.762e-05,2]
[422868912,1779552644000,-502.17006994,8.76e-05,2]
[422868921,1779552644000,-500.0,8.76e-05,2]
[422868911,1779552644000,-552.43,8.76e-05,2]
[422868914,1779552644000,-500.0,8.76e-05,2]
[422868923,1779552644000,-501.06646026,8.76e-05,2]
[422868919,1779552644000,-500.0,8.76e-05,2]
[422868922,1779552644000,-500.0,8.76e-05,2]
[422868917,1779552644000,-500.0,8.76e-05,2]
[422868915,1779552644000,-501.68323956,8.76e-05,2]
[422868920,1779552644000,-500.0,8.76e-05,2]
[422868913,1779552644000,-500.0,8.76e-05,2]
[422868916,1779552644000,-501.21022341,8.76e-05,2]
[422868918,1779552644000,-500.37450693,8.76e-05,2]
[422868958,1779552644000,-500.0,8.762e-05,2]
[422868924,1779552644000,-500.0,8.76e-05,2]
[422868929,1779552644000,-500.0,8.76e-05,2]
[422868935,1779552644000,-1079.56,8.76e-05,2]
[422868925,1779552644000,-500.0,8.76e-05,2]
[422868941,1779552644000,-500.0,8.762e-05,2]
[422868937,1779552644000,-500.0,8.76e-05,2]
[422868932,1779552644000,-500.0,8.76e-05,2]
[422868939,1779552644000,-627.08158675,8.762e-05,2]
[422868945,1779552644000,-604.7,8.762e-05,2]
[422868943,1779552644000,-500.0,8.762e-05,2]
[422868947,1779552644000,-500.0,8.762e-05,2]
[422868949,1779552644000,-500.0,8.762e-05,2]
[422868951,1779552644000,-500.0,8.762e-05,2]
[422868963,1779552644000,-501.73764815,8.762e-05,2]
[422868926,1779552644000,-500.0,8.76e-05,2]
[422868984,1779552644000,-500.0,8.762e-05,2]
[422868952,1779552644000,-500.0,8.762e-05,2]
[422868986,1779552644000,-500.0,8.763e-05,2]
[422869016,1779552644000,-500.0,8.763e-05,2]
[422869018,1779552644000,-541.84,8.763e-05,2]
[422869015,1779552644000,-395.53727034,8.763e-05,2]
[422869026,1779552644000,-501.01594147,8.763e-05,2]
[422869017,1779552644000,-500.0,8.763e-05,2]
[422869028,1779552644000,-500.0,8.763e-05,2]
[422869038,1779552644000,-648.0,8.889e-05,2]
[422869039,1779552644000,-187.0,8.889e-05,2]
[422869029,1779552644000,-500.0,8.763e-05,2]
[422869037,1779552644000,-373.941,8.834e-05,2]
[422869032,1779552644000,-151.0,8.764e-05,2]
[422869027,1779552644000,-502.75299473,8.763e-05,2]
[422869035,1779552644000,-991.76876701,8.799e-05,2]
[422869033,1779552644000,-151.094248,8.764e-05,2]
[422869030,1779552644000,-500.0,8.763e-05,2]
[422869036,1779552644000,-2872.04130807,8.804e-05,2]
[422869034,1779552644000,-500.0,8.764e-05,2]
[422869031,1779552644000,-500.0,8.763e-05,2]
[422869046,1779552644000,-500.0,9.034e-05,2]
[422869040,1779552644000,-185.0,8.889e-05,2]
[422869047,1779552644000,-500.0,9.034e-05,2]
[422869041,1779552644000,-443.0,8.889e-05,2]
[422869043,1779552644000,-207.416715,8.925e-05,2]
[422869050,1779552644000,-500.0,9.034e-05,2]
[422869044,1779552644000,-552.43,9.034e-05,2]
[422869049,1779552644000,-500.0,9.034e-05,2]
[422869048,1779552644000,-500.0,9.034e-05,2]
[422869042,1779552644000,-545.52285111,8.914e-05,2]
[422869045,1779552644000,-500.0,9.034e-05,2]
[422869024,1779552644000,-500.0,8.763e-05,2]
[422869022,1779552644000,-500.0,8.763e-05,2]
[422868985,1779552644000,-500.0,8.763e-05,2]
[422869023,1779552644000,-500.0,8.763e-05,2]
[422869025,1779552644000,-500.0,8.763e-05,2]
[422868987,1779552644000,-720.08,8.763e-05,2]
[422868991,1779552644000,-500.0,8.763e-05,2]
[422869001,1779552644000,-500.0,8.763e-05,2]
[422868990,1779552644000,-500.0,8.763e-05,2]
[422868993,1779552644000,-500.0,8.763e-05,2]
[422868992,1779552644000,-500.0,8.763e-05,2]
[422869000,1779552644000,-503.62,8.763e-05,2]
[422868995,1779552644000,-1031.07,8.763e-05,2]
[422868994,1779552644000,-500.0,8.763e-05,2]
[422868996,1779552644000,-500.0,8.763e-05,2]
[422868999,1779552644000,-500.0,8.763e-05,2]
[422868998,1779552644000,-500.0,8.763e-05,2]
[422868997,1779552644000,-500.0,8.763e-05,2]
[422869002,1779552644000,-500.0,8.763e-05,2]
[422869003,1779552644000,-542.8,8.763e-05,2]
[422869005,1779552644000,-500.0,8.763e-05,2]
[422869020,1779552644000,-500.0,8.763e-05,2]
[422869019,1779552644000,-500.0,8.763e-05,2]
[422869013,1779552644000,-500.0,8.763e-05,2]
[422869012,1779552644000,-500.0,8.763e-05,2]
[422869011,1779552644000,-500.0,8.763e-05,2]
[422869014,1779552644000,-500.0,8.763e-05,2]
[422869010,1779552644000,-500.0,8.763e-05,2]
[422869004,1779552644000,-500.0,8.763e-05,2]
[422869008,1779552644000,-325.30492121,8.763e-05,2]
[422869007,1779552644000,-500.0,8.763e-05,2]
[422869006,1779552644000,-500.0,8.763e-05,2]
[422869009,1779552644000,-500.0,8.763e-05,2]
[422869021,1779552644000,-500.0,8.763e-05,2]
[422869072,1779552645000,-500.0,9.037e-05,2]
[422869089,1779552645000,-151.0,9.038e-05,2]
[422869073,1779552645000,-500.0,9.037e-05,2]
[422869074,1779552645000,-500.0,9.037e-05,2]
[422869075,1779552645000,-500.0,9.037e-05,2]
[422869081,1779552645000,-196.98,9.038e-05,2]
[422869093,1779552645000,-151.0,9.038e-05,2]
[422869092,1779552645000,-151.0,9.038e-05,2]
[422869091,1779552645000,-500.0,9.038e-05,2]
[422869083,1779552645000,-196.98,9.038e-05,2]
[422869082,1779552645000,-196.98,9.038e-05,2]
[422869080,1779552645000,-151.0,9.038e-05,2]
[422869084,1779552645000,-196.98,9.038e-05,2]
[422869087,1779552645000,-151.0,9.038e-05,2]
[422869085,1779552645000,-151.0,9.038e-05,2]
[422869086,1779552645000,-204.954967,9.038e-05,2]
[422869090,1779552645000,-151.0,9.038e-05,2]
[422869095,1779552645000,-151.0,9.123e-05,2]
[422869096,1779552645000,-151.0,9.123e-05,2]
[422869069,1779552645000,-500.0,9.037e-05,2]
[422869088,1779552645000,-151.0,9.038e-05,2]
[422869071,1779552645000,-500.0,9.037e-05,2]
[422869059,1779552645000,-500.0,9.036e-05,2]
[422869068,1779552645000,-720.08,9.037e-05,2]
[422869051,1779552645000,-500.0,9.034e-05,2]
[422869052,1779552645000,-500.0,9.034e-05,2]
[422869053,1779552645000,-500.0,9.034e-05,2]
[422869055,1779552645000,-500.0,9.034e-05,2]
[422869056,1779552645000,-500.0,9.036e-05,2]
[422869060,1779552645000,-748.39,9.036e-05,2]
[422869057,1779552645000,-500.0,9.036e-05,2]
[422869058,1779552645000,-500.0,9.036e-05,2]
[422869099,1779552645000,-766.63845589,9.189e-05,2]
[422869062,1779552645000,-500.0,9.036e-05,2]
[422869061,1779552645000,-517.52,9.036e-05,2]
[422869054,1779552645000,-1079.56,9.034e-05,2]
[422869065,1779552645000,-870.9,9.036e-05,2]
[422869063,1779552645000,-4306.63,9.036e-05,2]
[422869064,1779552645000,-878.65,9.036e-05,2]
[422869067,1779552645000,-500.0,9.037e-05,2]
[422869076,1779552645000,-500.0,9.037e-05,2]
[422869077,1779552645000,-151.0,9.038e-05,2]
[422869078,1779552645000,-151.0,9.038e-05,2]
[422869079,1779552645000,-151.0,9.038e-05,2]
[422869066,1779552645000,-500.0,9.037e-05,2]
[422869070,1779552645000,-1031.07,9.037e-05,2]
[422869100,1779552645000,-160.0,9.189e-05,2]
[422869111,1779552645000,-500.0,9.308e-05,2]
[422869102,1779552645000,-160.0,9.189e-05,2]
[422869126,1779552645000,-878.65,9.31e-05,2]
[422869127,1779552645000,-870.9,9.31e-05,2]
[422869124,1779552645000,-500.0,9.31e-05,2]
[422869138,1779552645000,-58033.37912108,9.5e-05,2]
[422869128,1779552645000,-500.0,9.311e-05,2]
[422869129,1779552645000,-720.08,9.311e-05,2]
[422869130,1779552645000,-500.0,9.311e-05,2]
[422869132,1779552645000,-500.0,9.311e-05,2]
[422869133,1779552645000,-500.0,9.311e-05,2]
[422869097,1779552645000,-6247.4837758,9.123e-05,2]
[422869136,1779552645000,-226.9671274,9.312e-05,2]
[422869134,1779552645000,-500.0,9.311e-05,2]
[422869131,1779552645000,-1031.07,9.311e-05,2]
[422869139,1779552645000,-2333.18114726,7.339e-05,2]
[422869142,1779552645000,-500.0,9.308e-05,2]
[422869141,1779552645000,-584.24,8.763e-05,2]
[422869140,1779552645000,-2666.81885274,7.339e-05,2]
[422869143,1779552645000,-18422.09523246,9.5e-05,2]
[422869145,1779552645000,-866.8817175,9.5e-05,2]
[422869144,1779552645000,-8923.181642,9.5e-05,2]
[422869135,1779552645000,-151.0,9.312e-05,2]
[422869123,1779552645000,-517.52,9.31e-05,2]
[422869122,1779552645000,-748.39,9.31e-05,2]
[422869115,1779552645000,-500.0,9.308e-05,2]
[422869098,1779552645000,-161.73153808,9.189e-05,2]
[422869094,1779552645000,-1460.17802329,9.073e-05,2]
[422869101,1779552645000,-160.0,9.189e-05,2]
[422869104,1779552645000,-2928.18995706,9.227e-05,2]
[422869103,1779552645000,-198.48598029,9.226e-05,2]
[422869112,1779552645000,-500.0,9.308e-05,2]
[422869113,1779552645000,-500.0,9.308e-05,2]
[422869107,1779552645000,-152.0,9.303e-05,7]
[422869105,1779552645000,-500.0,9.263e-05,2]
[422869119,1779552645000,-500.0,9.31e-05,2]
[422869106,1779552645000,-207.416715,9.271e-05,2]
[422869108,1779552645000,-152.0,9.303e-05,7]
[422869110,1779552645000,-500.0,9.308e-05,2]
[422869114,1779552645000,-500.0,9.308e-05,2]
[422869116,1779552645000,-500.0,9.308e-05,2]
[422869117,1779552645000,-1079.56,9.308e-05,2]
[422869118,1779552645000,-489.50467147,9.31e-05,2]
[422869120,1779552645000,-500.0,9.31e-05,2]
[422869121,1779552645000,-500.0,9.31e-05,2]
[422869125,1779552645000,-4306.63,9.31e-05,2]
[422869109,1779552645000,-552.43,9.308e-05,2]
[422869137,1779552645000,-200.01467165,9.412e-05,2]
[422869152,1779552646000,-1275.38190145,9.5e-05,2]
[422869147,1779552646000,-152.0,8.221e-05,7]
[422869150,1779552646000,-500.0,8.762e-05,2]
[422869149,1779552646000,-500.0,8.489e-05,2]
[422869151,1779552646000,-1514.47645286,9.5e-05,2]
[422869148,1779552646000,-500.0,8.488e-05,2]
[422869153,1779552646000,-2119.25919702,9.5e-05,2]
[422869157,1779552647000,-13414.02128927,9.5e-05,2]
[422869156,1779552647000,-500.0,8.763e-05,2]
[422869155,1779552647000,-500.0,8.489e-05,2]
[422869154,1779552647000,-500.0,8.486e-05,2]
[422869169,1779553603000,502.9694042,0.00013255,120]
[422869168,1779553603000,502.9694042,0.00013219,120]
[422869176,1779553660000,5000.0,0.00017,120]
[422869177,1779553709000,153.6808759,0.00013291,120]
[422869219,1779553832000,-480.0,7.498e-05,2]
[422869213,1779553832000,-300.0,6.948e-05,2]
[422869215,1779553832000,-474.19297153,7.293e-05,2]
[422869211,1779553832000,-5000.0,6.809e-05,2]
[422869223,1779553832000,-300.0,7.499e-05,2]
[422869217,1779553832000,-890.34754901,7.471e-05,2]
[422869227,1779553832000,-2077.07715732,7.5e-05,6]
[422869225,1779553832000,-300.0,7.499e-05,2]
[422869221,1779553832000,-185.7893194,7.499e-05,2]
[422869364,1779553838000,-300.0,7.823e-05,2]
[422869365,1779553838000,-300.0,7.823e-05,2]
[422869366,1779553838000,-2970.79296828,7.871e-05,2]
[422869363,1779553838000,-300.0,7.823e-05,2]
[422869368,1779553838000,-3321.61879011,7.971e-05,2]
[422869372,1779553838000,-3450.86890827,8.071e-05,2]
[422869370,1779553838000,-164.03033362,8e-05,2]
[422869369,1779553838000,-600.0,7.978e-05,2]
[422869375,1779553838000,-500.0,8.219e-05,2]
[422869373,1779553838000,-3930.94484827,8.171e-05,2]
[422869374,1779553838000,-500.0,8.219e-05,2]
[422869377,1779553838000,-500.0,8.219e-05,2]
[422869386,1779553838000,-953.78,8.287e-05,2]
[422869387,1779553838000,-500.0,8.287e-05,2]
[422869388,1779553838000,-500.0,8.287e-05,2]
[422869371,1779553838000,-992.383852,8.065e-05,2]
[422869367,1779553838000,-1423.71522676,7.916e-05,2]
[422869351,1779553838000,-300.0,7.823e-05,2]
[422869362,1779553838000,-300.0,7.823e-05,2]
[422869345,1779553838000,-13414.77988951,7.5e-05,6]
[422869344,1779553838000,-4868.7877619,7.5e-05,6]
[422869346,1779553838000,-474.19297153,7.536e-05,2]
[422869347,1779553838000,-1700.77129605,7.571e-05,2]
[422869348,1779553838000,-2490.71702843,7.671e-05,2]
[422869352,1779553838000,-300.0,7.823e-05,2]
[422869350,1779553838000,-2511.19504308,7.771e-05,2]
[422869359,1779553838000,-300.0,7.823e-05,2]
[422869349,1779553838000,-992.383852,7.74e-05,2]
[422869389,1779553838000,-500.0,8.287e-05,2]
[422869354,1779553838000,-300.0,7.823e-05,2]
[422869353,1779553838000,-300.0,7.823e-05,2]
[422869357,1779553838000,-300.0,7.823e-05,2]
[422869360,1779553838000,-300.0,7.823e-05,2]
[422869355,1779553838000,-300.0,7.823e-05,2]
[422869361,1779553838000,-300.0,7.823e-05,2]
[422869358,1779553838000,-300.0,7.823e-05,2]
[422869390,1779553838000,-500.0,8.287e-05,2]
[422869356,1779553838000,-300.0,7.823e-05,2]
[422869392,1779553838000,-500.0,8.287e-05,2]
[422869408,1779553838000,-500.0,8.385e-05,2]
[422869414,1779553838000,-500.0,8.385e-05,2]
[422869410,1779553838000,-503.06,8.385e-05,2]